bitfinex/quotes_SOLUSD_20241007
["timestamp","ask_amount","ask_price","bid_price","bid_amount"]
[1728312178058,6.4991,152.23,152.17,7.33738258]
[1728312178272,8.14142889,152.23,152.17,7.33738258]
[1728312178446,8.14142889,152.23,152.16,33.26270553]
[1728312179265,8.14142889,152.23,152.12,50.0]
[1728312179266,6.5695,152.22,152.13,33.26270553]
[1728312179478,1.64271851,152.21,152.13,33.26270553]
[1728312180563,1.64271851,152.21,152.14,23.776884]
[1728312180867,8.21227697,152.22,152.13,33.26270553]
[1728312181067,6.4991,152.23,152.16,33.26270553]
[1728312181276,1.64250583,152.22,152.16,33.26270553]
[1728312181846,1.64250583,152.22,152.13,33.26270553]
[1728312182048,1.64250583,152.22,152.11,23.776884]
[1728312182371,6.5702,152.21,152.12,7.34745415]
[1728312182676,1.64285313,152.2,152.12,50.0]
[1728312182859,1.64267887,152.22,152.12,50.0]
[1728312183564,8.21207887,152.22,152.14,23.776884]
[1728312183765,1.64267887,152.22,152.12,50.0]
[1728312184078,1.64267887,152.22,152.13,7.35227842]
[1728312184382,1.64267887,152.22,152.15,33.26270553]
[1728312184549,6.4991,152.23,152.16,1.31410064]
[1728312184750,6.4991,152.23,152.17,1.31395144]
[1728312185460,8.14151013,152.23,152.15,33.26270553]
[1728312185680,8.21231219,152.22,152.15,33.26270553]
[1728312185976,6.5699,152.21,152.12,33.26270553]
[1728312186154,1.64287534,152.2,152.12,33.26270553]
[1728312186362,22.3269,152.19,152.12,33.26270553]
[1728312186554,1.64306046,152.18,152.09,33.26270553]
[1728312188368,1.64306046,152.18,152.1,1.31444618]
[1728312188572,15.7561,152.19,152.17,33.26270553]
[1728312188764,15.7561,152.19,152.18,1.31403091]
[1728312189166,15.7561,152.19,152.17,33.26270553]
[1728312189769,15.7561,152.19,152.18,1.3141215]
[1728312190067,6.4991,152.23,152.18,25.0910055]
[1728312190068,22.9586,152.23,152.18,25.0910055]
[1728312190676,22.9586,152.23,152.19,23.776884]
[1728312190853,22.9586,152.23,152.2,1.3137586]
[1728312191273,6.4991,152.23,152.21,23.776884]
[1728312191493,6.4991,152.23,152.22,1.31362528]
[1728312191860,6.4991,152.23,152.21,23.776884]
[1728312192783,6.4991,152.23,152.18,23.776884]
[1728312193276,6.4991,152.23,152.17,33.26270553]
[1728312193277,1.64233521,152.22,152.17,33.26270553]
[1728312194663,6.4991,152.23,152.18,1.31404812]
[1728312195289,6.4991,152.23,152.19,23.776884]
[1728312195458,6.4991,152.23,152.18,23.776884]
[1728312196154,16.5669,152.27,152.19,20.25098]
[1728312196355,16.5669,152.27,152.25,33.26270553]
[1728312196560,16.5669,152.27,152.26,23.776884]
[1728312196872,1.64161484,152.37,152.26,23.776884]
[1728312197062,6.5639,152.35,152.28,33.26270553]
[1728312197263,8.20586263,152.34,152.25,23.776884]
[1728312197685,8.20586263,152.34,152.26,1.31322741]
[1728312198265,6.5647,152.33,152.27,1.31326248]
[1728312198576,6.5643,152.34,152.27,23.776884]
[1728312198779,1.64139153,152.33,152.28,1.31311322]
[1728312198960,1.64136145,152.35,152.28,1.31311322]
[1728312199795,6.5235,152.34,152.28,1.31311322]
[1728312199967,1.64134962,152.33,152.28,1.31311322]
[1728312200282,6.5626,152.38,152.31,23.776884]
[1728312200485,1.64100755,152.37,152.31,23.776884]
[1728312200788,1.64100755,152.37,152.32,1.31280604]
[1728312201290,1.64100223,152.39,152.33,34.57550732]
[1728312201479,0.8554023,152.41,152.33,34.57550732]
[1728312201783,1.64070416,152.4,152.33,33.26270553]
[1728312201984,8.20240416,152.4,152.33,33.26270553]
[1728312202175,8.20240416,152.4,152.34,43.0548991]
[1728312202377,8.20240416,152.4,152.33,33.26270553]
[1728312202378,1.64070416,152.4,152.33,33.26270553]
[1728312202579,6.5617,152.4,152.33,33.26270553]
[1728312202773,1.64082372,152.39,152.33,33.26270553]
[1728312202977,7.4166023,152.41,152.33,33.26270553]
[1728312203285,6.5622,152.39,152.33,33.26270553]
[1728312203591,1.64092425,152.38,152.33,33.26270553]
[1728312203887,8.20352425,152.38,152.3,33.26270553]
[1728312204085,6.5631,152.37,152.3,33.26270553]
[1728312204281,13.2187,152.35,152.27,39.82490553]
[1728312204478,1.64131214,152.34,152.27,33.26270553]
[1728312204686,8.20571214,152.34,152.27,33.26270553]
[1728312204987,1.64131214,152.34,152.21,33.26270553]
[1728312205185,1.64131214,152.34,152.21,32.76270553]
[1728312205186,6.566,152.3,152.21,32.76270553]
[1728312205391,6.5652,152.32,152.21,32.76270553]
[1728312205706,1.64171215,152.31,152.24,33.26270553]
[1728312205865,1.64171215,152.31,152.25,1.31333625]
[1728312206062,6.5652,152.32,152.24,33.26270553]
[1728312206464,6.5657,152.31,152.24,33.26270553]
[1728312207103,1.64172051,152.3,152.24,33.26270553]
[1728312207275,1.64172051,152.3,152.25,1.31349022]
[1728312207470,6.5656,152.31,152.24,33.26270553]
[1728312207670,23.065,152.35,152.19,30.0]
[1728312207671,6.5672,152.27,152.19,30.0]
[1728312207878,6.5672,152.27,152.15,16.4678]
[1728312207879,1.64213555,152.26,152.17,33.26270553]
[1728312208384,13.0201,152.25,152.17,33.26270553]
[1728312208585,1.64237025,152.24,152.17,33.26270553]
[1728312208785,1.64237025,152.24,152.18,1.3138962]
[1728312209012,1.64237025,152.24,152.19,1.31392201]
[1728312209394,8.09431875,152.25,152.19,1.31392201]
[1728312209691,6.5686,152.24,152.17,33.26270553]
[1728312209996,1.64253616,152.23,152.17,33.26270553]
[1728312210387,1.64253616,152.23,152.14,33.26270553]
[1728312210587,1.64253616,152.23,152.15,30.0]
[1728312210785,1.64287086,152.24,152.15,30.0]
[1728312211478,6.5719,152.17,152.08,33.26270553]
[1728312211678,8.215611,152.16,152.08,33.26270553]
[1728312212181,1.643311,152.16,152.08,33.26270553]
[1728312212387,1.64334582,152.15,152.08,33.26270553]
[1728312212607,1.64333879,152.16,152.09,1.31467103]
[1728312212779,6.5724,152.15,152.05,6.87183936]
[1728312213106,1.64361188,152.14,152.06,34.57759504]
[1728312213281,1.64361188,152.14,152.06,33.26270553]
[1728312213477,6.5957,152.13,152.06,33.26270553]
[1728312213803,6.5957,152.13,152.03,33.26270553]
[1728312213804,1.64371927,152.12,152.03,33.26270553]
[1728312214178,1.64371927,152.12,151.95,17.35805492]
[1728312214179,1.64371927,152.12,152.0,33.26270553]
[1728312214375,1.64371927,152.12,151.97,33.26270553]
[1728312214583,0.25098,152.11,151.98,3.32258549]
[1728312214783,6.5777,152.03,151.94,33.26270553]
[1728312215002,1.64491645,152.02,151.94,33.26270553]
[1728312215199,1.64491645,152.02,151.91,39.85840553]
[1728312215608,1.64491645,152.02,151.91,33.26270553]
[1728312215609,6.5787,152.01,151.91,33.26270553]
[1728312215800,1.64522528,152.0,151.91,33.26270553]
[1728312216106,6.1372,151.98,151.88,34.11810783]
[1728312216309,1.64564214,151.97,151.88,0.8554023]
[1728312216579,1.64564214,151.97,151.89,1.31662892]
[1728312216678,1.64564214,151.97,151.91,54.14186093]
[1728312217882,6.1372,151.98,151.92,1.31623781]
[1728312218307,6.1372,151.98,151.91,54.14186093]
[1728312218484,1.6451449,151.97,151.91,54.14186093]
[1728312218691,1.6451449,151.97,151.92,25.09313106]
[1728312218890,1.64528951,151.97,151.92,23.776884]
[1728312219395,1.64528951,151.97,151.89,23.776884]
[1728312219589,1.64528951,151.97,151.88,54.99726323]
[1728312219905,1.64528951,151.97,151.88,0.8554023]
[1728312220322,8.22548951,151.97,151.88,0.8554023]
[1728312220699,6.581,151.96,151.88,0.8554023]
[1728312220903,8.22688284,151.95,151.88,0.8554023]
[1728312221501,1.64578284,151.95,151.88,0.8554023]
[1728312221696,6.5816,151.94,151.88,0.8554023]
[1728312221909,1.64592101,151.93,151.88,0.8554023]
[1728312223912,16.5811,151.92,151.88,0.8554023]
[1728312224124,8.229472,151.91,151.88,0.8554023]
[1728312225120,6.5834,151.9,151.88,0.8554023]
[1728312225295,7.90655292,151.89,151.88,0.8554023]
[1728312225502,16.5811,151.92,151.88,0.8554023]
[1728312225919,1.64577651,151.91,151.88,0.8554023]
[1728312226129,16.5811,151.92,151.88,0.8554023]
[1728312226498,1.64577651,151.93,151.88,54.99726323]
[1728312227303,1.64577651,151.93,151.88,0.8554023]
[1728312228522,1.64577651,151.93,151.89,1.31657306]
[1728312228735,6.4035,151.94,151.89,1.31657306]
[1728312228904,1.64545896,151.96,151.91,23.776884]
[1728312229428,1.64545896,151.96,151.9,54.14186093]
[1728312229599,1.64545896,151.96,151.88,0.8554023]
[1728312229798,1.64545896,151.96,151.89,23.776884]
[1728312230399,8.22635896,151.96,151.88,0.8554023]
[1728312230621,1.64545896,151.96,151.89,1.31664453]
[1728312231322,16.224,151.97,151.91,54.14186093]
[1728312231502,1.64547379,151.98,151.92,1.31623371]
[1728312231702,1.64547379,151.98,151.93,23.776884]
[1728312231894,1.64547379,151.98,151.94,1.31616502]
[1728312232114,1.64547379,151.98,151.93,23.776884]
[1728312232313,6.5581,151.99,151.92,23.776884]
[1728312232599,1.64507114,151.98,151.92,23.776884]
[1728312233434,1.64507114,151.98,151.91,54.14186093]
[1728312233929,1.64507114,151.98,151.92,1.31638235]
[1728312234300,1.64507114,151.98,151.91,54.14186093]
[1728312234820,1.64507114,151.98,151.88,54.99726323]
[1728312235026,6.581,151.96,151.88,0.8554023]
[1728312235227,8.22682494,151.95,151.88,0.8554023]
[1728312235425,6.5815,151.94,151.88,0.8554023]
[1728312235632,1.64582737,151.93,151.88,0.8554023]
[1728312235929,6.5819,151.93,151.88,0.8554023]
[1728312236127,1.64594791,151.92,151.88,0.8554023]
[1728312236530,8.22834791,151.92,151.88,0.8554023]
[1728312236703,24.77114791,151.92,151.88,0.8554023]
[1728312236909,6.5828,151.91,151.88,0.8554023]
[1728312237120,1.64620079,151.9,151.88,0.8554023]
[1728312237319,1.64620662,151.91,151.88,0.8554023]
[1728312237535,16.5428,151.92,151.88,54.99726323]
[1728312237825,1.64599527,151.95,151.88,54.99726323]
[1728312238032,1.64599527,151.95,151.88,56.31389355]
[1728312238629,16.5428,151.97,151.89,23.776884]
[1728312238829,1.64562323,151.96,151.9,1.31649859]
[1728312239208,1.64562323,151.96,151.9,44.37139769]
[1728312239533,1.64562323,151.96,151.9,1.31649859]
[1728312239748,8.22662323,151.96,151.89,23.776884]
[1728312239916,1.64562323,151.96,151.88,0.8554023]
[1728312240106,6.582,151.93,151.88,0.8554023]
[1728312240432,1.64598422,151.92,151.88,0.8554023]
[1728312241221,6.5837,151.89,151.88,0.8554023]
[1728312241421,8.23019904,151.89,151.88,0.8554023]
[1728312242515,6.5851,151.86,151.79,54.14186093]
[1728312242712,1.64675142,151.85,151.76,54.14186093]
[1728312242912,6.5868,151.82,151.73,54.99726323]
[1728312243110,1.64711698,151.81,151.73,54.99726323]
[1728312243335,6.5957,151.84,151.73,54.99726323]
[1728312243639,1.64724254,151.83,151.73,54.99726323]
[1728312243844,0.12549,151.86,151.74,7.80115003]
[1728312244007,6.5871,151.82,151.74,63.26061741]
[1728312244212,6.5864,151.83,151.77,54.14186093]
[1728312244429,6.5863,151.83,151.77,54.14186093]
[1728312244727,0.83747935,151.85,151.78,1.31745992]
[1728312244930,6.5858,151.85,151.78,1.31745992]
[1728312245134,6.5851,151.86,151.8,54.14186093]
[1728312245340,0.83747935,151.85,151.81,25.09414107]
[1728312245635,16.0346,151.88,151.81,25.09414107]
[1728312245819,6.5855,151.85,151.81,23.776884]
[1728312246027,0.83747935,151.87,151.81,25.09413441]
[1728312246221,7.42207935,151.87,151.83,23.776884]
[1728312246822,6.585,151.86,151.83,23.776884]
[1728312247210,6.585,151.86,151.78,20.12549]
[1728312247534,7.42287935,151.85,151.81,23.776884]
[1728312247739,0.83747935,151.84,151.81,23.776884]
[1728312248239,0.83747935,151.84,151.79,23.776884]
[1728312248819,0.83747935,151.84,151.79,1.31733147]
[1728312249021,0.83747935,151.87,151.78,20.0]
[1728312249217,7.42237935,151.87,151.81,54.14186093]
[1728312249539,6.5851,151.86,151.81,54.14186093]
[1728312249842,0.83747935,151.85,151.78,20.0]
[1728312250043,0.83747935,151.85,151.79,23.776884]
[1728312250224,6.5859,151.84,151.79,23.776884]
[1728312250429,7.42407935,151.83,151.77,54.14186093]
[1728312250620,6.5868,151.82,151.77,54.14186093]
[1728312251017,0.83747935,151.81,151.77,54.14186093]
[1728312251223,7.42477935,151.81,151.77,54.14186093]
[1728312251428,0.83747935,151.81,151.77,54.14186093]
[1728312251638,7.42457935,151.81,151.77,54.14186093]
[1728312252424,0.83747935,151.81,151.74,54.14186093]
[1728312252623,48.9556,151.88,151.73,54.99726323]
[1728312252624,6.5881,151.79,151.73,54.99726323]
[1728312252949,7.42607935,151.78,151.73,54.99726323]
[1728312253245,6.5886,151.78,151.73,54.99726323]
[1728312253828,6.5881,151.79,151.73,54.99726323]
[1728312254057,0.83747935,151.78,151.73,54.99726323]
[1728312254228,7.42597935,151.78,151.73,54.99726323]
[1728312255136,16.81807935,151.78,151.73,0.8554023]
[1728312255327,16.81807935,151.78,151.69,7.23071072]
[1728312255328,6.3238,151.73,151.69,7.23071072]
[1728312255536,0.83747935,151.72,151.65,10.54870583]
[1728312255740,0.83747935,151.72,151.64,10.54870583]
[1728312255950,0.83747935,151.72,151.63,54.14186093]
[1728312256562,0.83747935,151.72,151.64,1.31841447]
[1728312256740,0.83747935,151.72,151.65,1.31838337]
[1728312257053,0.83747935,151.72,151.63,54.14186093]
[1728312257229,0.83747935,151.72,151.58,16.8360023]
[1728312257230,0.83747935,151.72,151.6,54.14186093]
[1728312257432,6.5922,151.7,151.6,54.14186093]
[1728312257638,0.83747935,151.69,151.6,54.14186093]
[1728312257848,7.42997935,151.69,151.58,54.99726323]
[1728312258443,22.64227935,151.69,151.58,54.99726323]
[1728312258755,0.83747935,151.68,151.58,54.99726323]
[1728312259157,7.43027935,151.68,151.59,20.0]
[1728312259366,7.43027935,151.68,151.58,54.99726323]
[1728312259659,7.43027935,151.68,151.61,54.14186093]
[1728312259660,0.83747935,151.68,151.61,54.14186093]
[1728312259850,0.83747935,151.68,151.63,6.5945]
[1728312260573,0.83747935,151.72,151.64,1.3189221]
[1728312260859,0.83747935,151.72,151.62,20.0]
[1728312261056,6.592,151.7,151.62,20.0]
[1728312261359,0.83747935,151.69,151.62,23.776884]
[1728312262063,0.83747935,151.69,151.64,23.776884]
[1728312262266,7.42947935,151.7,151.64,23.776884]
[1728312262451,7.42987935,151.69,151.61,54.14186093]
[1728312262663,0.83747935,151.69,151.61,54.14186093]
[1728312262962,6.5937,151.66,151.58,54.99726323]
[1728312263161,36.4784,151.72,151.58,54.99726323]
[1728312263162,0.83747935,151.65,151.58,54.99726323]
[1728312263454,0.83747935,151.64,151.58,0.8554023]
[1728312263659,7.12057935,151.64,151.58,0.8554023]
[1728312265190,7.12057935,151.64,151.6,6.5962]
[1728312265349,7.12057935,151.64,151.58,2.17456563]
[1728312265549,6.93357935,151.69,151.59,55.46092906]
[1728312265747,6.5928,151.68,151.62,54.14186093]
[1728312265949,0.83747935,151.67,151.64,6.5945]
[1728312266141,0.83747935,151.67,151.63,23.776884]
[1728312266343,7.43067935,151.67,151.62,6.5954]
[1728312266542,7.43067935,151.67,151.59,54.14186093]
[1728312266754,0.83747935,151.67,151.6,23.902374]
[1728312266971,6.93357935,151.69,151.62,77.91874493]
[1728312267342,6.5933,151.67,151.59,54.14186093]
[1728312267657,0.83747935,151.68,151.64,6.5944]
[1728312267865,0.83747935,151.68,151.65,6.5941]
[1728312268472,0.83747935,151.68,151.65,6.594]
[1728312268763,0.83747935,151.68,151.65,6.5941]
[1728312268977,6.93357935,151.69,151.66,6.5936]
[1728312269162,6.93357935,151.69,151.65,6.594]
[1728312269763,16.1004,151.7,151.67,23.776884]
[1728312269972,0.83747935,151.69,151.62,54.14186093]
[1728312270173,0.83747935,151.69,151.63,23.776884]
[1728312270465,0.83747935,151.69,151.65,23.776884]
[1728312270669,0.83747935,151.71,151.67,23.776884]
[1728312270873,0.83747935,151.72,151.67,23.776884]
[1728312271169,7.42927935,151.71,151.61,54.14186093]
[1728312271373,0.83747935,151.71,151.61,54.14186093]
[1728312271668,7.42937935,151.71,151.61,54.14186093]
[1728312272166,7.35147935,151.73,151.67,54.14186093]
[1728312272768,7.35147935,151.73,151.68,23.902374]
[1728312274123,32.9329,151.83,151.68,23.902374]
[1728312274124,6.2061,151.77,151.71,24.027864]
[1728312274376,0.83747935,151.78,151.73,23.776884]
[1728312274592,16.277,151.79,151.74,0.12549]
[1728312274753,16.277,151.79,151.74,1.56868411]
[1728312275078,6.2061,151.81,151.76,0.25098]
[1728312275281,15.6502,151.84,151.77,23.776884]
[1728312275574,15.6502,151.84,151.79,23.902374]
[1728312275752,6.4236,151.85,151.8,0.12549]
[1728312276162,0.83747935,151.88,151.8,0.12549]
[1728312276762,0.83747935,151.88,151.81,23.776884]
[1728312276970,0.83747935,151.88,151.83,23.776884]
[1728312277162,6.2212,152.03,151.85,23.776884]
[1728312277487,6.2212,152.03,151.87,77.91874493]
[1728312277488,6.5806,151.96,151.87,77.91874493]
[1728312277693,0.83747935,151.95,151.89,23.776884]
[1728312278179,0.83747935,151.95,151.88,23.776884]
[1728312278180,7.41857935,151.95,151.88,23.776884]
[1728312278382,0.83747935,151.95,151.88,23.776884]
[1728312279263,0.83747935,151.95,151.89,1.31651625]
[1728312279583,0.83747935,152.0,151.91,0.12549]
[1728312279777,0.83747935,152.0,151.92,23.776884]
[1728312279958,0.83747935,152.0,151.91,1.44161093]
[1728312279959,0.83747935,152.0,151.94,23.776884]
[1728312280155,6.5799,151.98,151.91,23.776884]
[1728312280460,7.41807935,151.97,151.88,1.31628121]
[1728312280666,0.83747935,151.97,151.89,0.12549]
[1728312280863,0.83747935,152.01,151.91,0.12549]
[1728312281072,7.41607935,152.01,151.91,0.12549]
[1728312281287,6.5803,151.97,151.88,20.0]
[1728312281486,0.83747935,151.96,151.88,20.0]
[1728312281666,0.83747935,151.96,151.87,54.14186093]
[1728312281986,6.5811,151.95,151.87,54.14186093]
[1728312282190,0.83747935,151.94,151.87,54.14186093]
[1728312282484,6.5802,151.97,151.88,1.4419887]
[1728312282678,0.83747935,151.96,151.88,1.44188506]
[1728312282858,0.83747935,151.96,151.88,0.12549]
[1728312283059,7.41807935,151.96,151.88,0.12549]
[1728312283381,7.41807935,151.96,151.88,23.902374]
[1728312283682,0.83747935,151.96,151.88,23.902374]
[1728312283975,7.41717935,151.99,151.9,23.902374]
[1728312284201,7.41717935,151.99,151.92,23.776884]
[1728312284485,0.83747935,151.98,151.92,23.776884]
[1728312284993,0.83747935,151.98,151.87,104.14186093]
[1728312284994,6.5806,151.97,151.87,20.12549]
[1728312285279,7.41827935,151.96,151.88,23.776884]
[1728312285475,0.83747935,151.95,151.88,23.776884]
[1728312285862,7.41857935,151.95,151.87,20.0]
[1728312286066,7.41857935,151.95,151.85,20.0]
[1728312286067,0.83747935,151.94,151.85,20.0]
[1728312286572,7.41917935,151.94,151.85,20.0]
[1728312286966,7.41917935,151.94,151.84,104.14186093]
[1728312287158,0.83747935,151.94,151.85,0.12549]
[1728312287363,21.08845935,152.0,151.85,0.12549]
[1728312287567,6.5815,151.94,151.85,0.12549]
[1728312287902,0.83747935,151.93,151.85,0.12549]
[1728312288195,6.5824,151.92,151.84,54.14186093]
[1728312288384,0.83747935,151.91,151.82,50.0]
[1728312288685,0.83747935,151.92,151.82,50.0]
[1728312289987,7.41987935,151.92,151.84,0.12549]
[1728312290190,7.41987935,151.92,151.82,20.0]
[1728312290191,6.5832,151.91,151.82,20.0]
[1728312290383,0.83747935,151.92,151.83,1.31683604]
[1728312290570,0.83747935,151.92,151.82,70.0]
[1728312291284,7.41987935,151.92,151.82,70.0]
[1728312291485,6.5828,151.91,151.83,24.027864]
[1728312291702,6.5842,151.88,151.78,54.14186093]
[1728312291914,0.83747935,151.87,151.79,30.0]
[1728312292214,6.5851,151.86,151.77,6.5828]
[1728312292407,6.5851,151.86,151.75,54.14186093]
[1728312292408,7.42317935,151.85,151.75,54.14186093]
[1728312292594,0.83747935,151.85,151.75,54.14186093]
[1728312292795,0.83747935,151.9,151.78,54.14186093]
[1728312292997,0.83747935,151.9,151.78,104.14186093]
[1728312293308,6.5845,151.87,151.79,20.0]
[1728312293503,0.83747935,151.86,151.8,23.776884]
[1728312293686,6.5841,151.88,151.81,1.31719272]
[1728312294014,0.83747935,151.87,151.81,1.31719272]
[1728312294213,0.83747935,151.88,151.79,0.12549]
[1728312294401,0.83747935,151.88,151.79,54.26735093]
[1728312294711,6.0664,151.93,151.81,0.12549]
[1728312294712,7.42047935,151.91,151.81,0.12549]
[1728312295208,0.83747935,151.91,151.81,23.776884]
[1728312296418,6.584,151.89,151.81,23.776884]
[1728312296715,6.5847,151.87,151.78,0.25098]
[1728312296900,0.83747935,151.86,151.78,0.25098]
[1728312297584,6.5842,151.88,151.78,1.56813753]
[1728312297808,0.83747935,151.87,151.79,23.776884]
[1728312297994,0.83747935,151.87,151.8,0.12549]
[1728312298208,0.83747935,151.87,151.8,23.902374]
[1728312298692,0.83747935,151.87,151.79,20.12549]
[1728312298898,7.42167935,151.88,151.8,23.902374]
[1728312299110,0.83747935,151.87,151.8,23.902374]
[1728312299319,0.83747935,151.87,151.81,0.12549]
[1728312299514,0.83747935,151.91,151.79,20.0]
[1728312299722,6.5853,151.86,151.76,20.0]
[1728312300016,0.83747935,151.85,151.75,83.34734216]
[1728312300190,16.4568,151.92,151.75,83.34734216]
[1728312300191,20.83747935,151.91,151.77,50.0]
[1728312300394,6.5837,151.89,151.78,33.34734216]
[1728312300616,0.83747935,151.88,151.78,33.34734216]
[1728312300798,0.83747935,151.88,151.79,24.027864]
[1728312301321,0.83747935,151.89,151.81,57.37520616]
[1728312301618,0.83747935,151.9,151.83,23.902374]
[1728312301792,7.42077935,151.9,151.82,23.776884]
[1728312301993,0.83747935,151.9,151.81,23.776884]
[1728312302216,6.5842,151.88,151.81,23.776884]
[1728312302518,0.83747935,151.87,151.81,23.776884]
[1728312303521,0.83747935,151.92,151.84,33.59832216]
[1728312303696,0.83747935,151.92,151.85,25.09356822]
[1728312304019,7.41987935,151.92,151.85,23.776884]
[1728312304214,6.5832,151.91,151.85,23.776884]
[1728312304396,0.83747935,151.9,151.85,23.776884]
[1728312304894,6.5844,151.88,151.79,20.0]
[1728312305096,0.83747935,151.87,151.79,20.0]
[1728312305999,6.5833,151.9,151.81,23.902374]
[1728312306200,0.83747935,151.89,151.83,23.776884]
[1728312306419,0.83747935,151.89,151.85,23.776884]
[1728312306726,7.42017935,151.92,151.86,1.31698418]
[1728312306927,0.83747935,151.92,151.87,23.776884]
[1728312307101,6.90387935,151.93,151.89,23.776884]
[1728312307498,13.48607935,151.93,151.89,23.776884]
[1728312307726,6.0664,151.93,151.9,1.31662161]
[1728312308107,6.0664,151.93,151.91,23.776884]
[1728312308312,15.2948,151.94,151.92,1.31635315]
[1728312308510,6.93387935,151.97,151.93,23.776884]
[1728312308718,6.0964,151.97,151.95,23.776884]
[1728312308933,15.7369,151.99,151.97,23.776884]
[1728312309424,15.7369,151.99,151.93,23.776884]
[1728312309630,0.83747935,151.98,151.93,23.776884]
[1728312309828,6.5808,151.96,151.93,23.776884]
[1728312310136,7.41737935,151.98,151.93,23.776884]
[1728312310304,0.83747935,151.98,151.9,23.776884]
[1728312310501,6.5804,151.97,151.89,33.34734216]
[1728312310705,0.83747935,151.98,151.9,1.44180772]
[1728312311138,15.7369,151.99,151.92,33.34734216]
[1728312311431,15.7369,151.99,151.92,33.47283216]
[1728312311630,0.83747935,151.98,151.93,23.776884]
[1728312312304,0.83747935,151.98,151.89,33.34734216]
[1728312312511,7.41757935,151.98,151.89,33.34734216]
[1728312312708,0.83747935,151.98,151.9,1.31629598]
[1728312312917,15.7369,151.99,151.92,33.34734216]
[1728312313706,15.7369,151.99,151.93,24.027864]
[1728312314147,0.83747935,151.98,151.93,23.776884]
[1728312314345,0.83747935,151.98,151.9,20.12549]
[1728312314549,20.12549,151.94,151.74,6.86925638]
[1728312314713,22.11,151.81,151.74,6.86925638]
[1728312315033,20.83747935,151.8,151.77,30.0]
[1728312315236,6.5904,151.74,151.63,33.34734216]
[1728312315436,0.83747935,151.79,151.66,50.0]
[1728312315620,0.83747935,151.79,151.64,1.31834245]
[1728312315621,0.83747935,151.79,151.64,50.0]
[1728312315809,0.83747935,151.79,151.66,83.34734216]
[1728312316015,0.83747935,151.8,151.7,50.0]
[1728312316339,28.6972,151.81,151.72,83.34734216]
[1728312316340,22.11,151.81,151.72,83.34734216]
[1728312316635,22.11,151.81,151.72,33.34734216]
[1728312316636,0.83747935,151.8,151.72,33.34734216]
[1728312316813,6.588,151.79,151.7,50.0]
[1728312317009,0.83747935,151.78,151.7,50.0]
[1728312317212,22.11,151.81,151.71,1.31777767]
[1728312317431,22.11,151.81,151.69,33.34734216]
[1728312317432,22.11,151.81,151.72,50.0]
[1728312317620,0.83747935,151.8,151.72,50.0]
[1728312317824,51.7199312,152.04,151.72,50.0]
[1728312317825,6.0472,151.86,151.74,33.34734216]
[1728312318010,6.88467935,151.86,151.78,20.0]
[1728312318212,13.46967935,151.86,151.79,23.776884]
[1728312318444,6.88467935,151.86,151.79,23.776884]
[1728312318631,6.5855,151.85,151.79,23.776884]
[1728312318935,0.83747935,151.84,151.79,23.776884]
[1728312320148,0.83747935,151.84,151.81,23.776884]
[1728312320336,0.83747935,151.85,151.81,23.776884]
[1728312321045,6.88467935,151.86,151.81,23.776884]
[1728312321544,13.46977935,151.86,151.81,23.776884]
[1728312322142,6.88467935,151.86,151.81,23.776884]
[1728312323353,6.88467935,151.86,151.8,23.776884]
[1728312323557,6.88467935,151.86,151.72,50.0]
[1728312323558,6.5854,151.85,151.79,30.364784]
[1728312323731,0.83747935,151.84,151.79,23.776884]
[1728312324335,7.42337935,151.84,151.79,23.776884]
[1728312324531,0.83747935,151.84,151.79,30.364784]
[1728312325132,7.42347935,151.84,151.77,6.5885]
[1728312325354,0.83747935,151.84,151.77,6.5888]
[1728312325553,6.5865,151.83,151.77,6.5888]
[1728312325758,0.83747935,151.82,151.77,6.5888]
[1728312326065,7.42457935,151.82,151.76,6.5891]
[1728312326258,0.83747935,151.82,151.69,83.34734216]
[1728312326462,0.83747935,151.82,151.75,6.5897]
[1728312326637,6.5876,151.8,151.69,83.34734216]
[1728312326960,6.5889,151.77,151.67,50.0]
[1728312327162,0.83747935,151.76,151.71,6.5911]
[1728312327344,6.5903,151.74,151.69,6.5923]
[1728312327540,0.83747935,151.73,151.69,6.5923]
[1728312327735,0.83747935,151.73,151.64,50.0]
[1728312327940,0.83747935,151.73,151.62,50.0]
[1728312328135,0.83747935,151.73,151.67,6.5928]
[1728312328448,6.5916,151.71,151.66,6.5936]
[1728312328648,0.83747935,151.7,151.66,6.5936]
[1728312329163,7.42947935,151.7,151.61,3.36653521]